[Event "December 12 Early 2023"]
[Site "https://www.chess.com"]
[Date "2023.12.12"]
[Round "9"]
[White "Sailer, Mike"]
[Black "Donchenko, Anatoly"]
[Result "1-0"]
[Board "126"]
[TimeControl "180+1"]
[WhiteFideId "2012901"]
[BlackFideId "4106091"]
[WhiteElo "2072"]
[BlackElo "2378"]
[WhiteTeam "USA"]
[BlackTeam "GER"]
[WhiteClock "0:00:18"]
[BlackClock "0:01:01"]

1. d4 {[%clk 0:02:59]}  d5 {[%clk 0:02:58]} 2. Bf4 {[%clk 0:02:56]}  c5 {[%clk 0:02:57]} 3. e3 {[%clk 0:02:56]}  Nc6 {[%clk 0:02:52]} 4. Nc3 {[%clk 0:02:55]}  e6 {[%clk 0:02:44]} 5. Nb5 {[%clk 0:02:53]}  Qa5+ {[%clk 0:02:43]} 6. c3 {[%clk 0:02:53]}  e5 {[%clk 0:02:36]} 7. dxe5 {[%clk 0:02:48]}  Be6 {[%clk 0:02:29]} 8. Nf3 {[%clk 0:02:40]}  O-O-O {[%clk 0:02:23]} 9. Be2 {[%clk 0:02:28]}  h6 {[%clk 0:02:18]} 10. O-O {[%clk 0:02:21]}  Nge7 {[%clk 0:02:17]} 11. Nd6+ {[%clk 0:02:20]}  Kb8 {[%clk 0:02:16]} 12. b4 {[%clk 0:02:14]}  cxb4 {[%clk 0:02:12]} 13. cxb4 {[%clk 0:02:14]}  Qb6 {[%clk 0:02:08]} 14. a4 {[%clk 0:02:09]}  Ng6 {[%clk 0:02:07]} 15. a5 {[%clk 0:02:09]}  Qc7 {[%clk 0:02:02]} 16. a6 {[%clk 0:01:22]}  b6 {[%clk 0:01:53]} 17. Rc1 {[%clk 0:00:57]}  Qd7 {[%clk 0:01:52]} 18. Bb5 {[%clk 0:00:56]}  Bxd6 {[%clk 0:01:43]} 19. Bxc6 {[%clk 0:00:54]}  Qe7 {[%clk 0:01:41]} 20. exd6 {[%clk 0:00:53]}  Rxd6 {[%clk 0:01:41]} 21. Bxd6+ {[%clk 0:00:53]}  Qxd6 {[%clk 0:01:41]} 22. Nd4 {[%clk 0:00:47]}  Bc8 {[%clk 0:01:39]} 23. Bb7 {[%clk 0:00:44]}  Bd7 {[%clk 0:01:32]} 24. Nc6+ {[%clk 0:00:42]}  Bxc6 {[%clk 0:01:31]} 25. Rxc6 {[%clk 0:00:40]}  Qe5 {[%clk 0:01:28]} 26. Qc2 {[%clk 0:00:38]}  Ne7 {[%clk 0:01:19]} 27. Rc3 {[%clk 0:00:34]}  Rd8 {[%clk 0:01:14]} 28. Rc1 {[%clk 0:00:33]}  Qe6 {[%clk 0:01:14]} 29. Rc7 {[%clk 0:00:23]}  d4 {[%clk 0:01:01]} 30. Rxe7 {[%clk 0:00:19]}  d3 {[%clk 0:01:01]} 31. Qc7# {[%clk 0:00:18]} 1-0

[Event "December 12 Early 2023"]
[Site "https://www.chess.com"]
[Date "2023.12.12"]
[Round "9"]
[White "BestestBP"]
[Black "Kopczynski, Michal"]
[Result "0-1"]
[Board "127"]
[TimeControl "180+1"]
[BlackFideId "1124200"]
[WhiteElo "2148"]
[BlackElo "2534"]
[BlackTeam "POL"]
[WhiteClock "0:00:06"]
[BlackClock "0:00:07"]

1. d4 {[%clk 0:03:00]}  Nf6 {[%clk 0:02:59]} 2. Nf3 {[%clk 0:03:00]}  g6 {[%clk 0:02:59]} 3. c4 {[%clk 0:03:00]}  Bg7 {[%clk 0:02:59]} 4. g3 {[%clk 0:03:01]}  d6 {[%clk 0:02:59]} 5. Bg2 {[%clk 0:03:00]}  O-O {[%clk 0:03:00]} 6. O-O {[%clk 0:03:00]}  Nfd7 {[%clk 0:03:00]} 7. Nc3 {[%clk 0:03:00]}  Nc6 {[%clk 0:03:01]} 8. e4 {[%clk 0:02:56]}  e5 {[%clk 0:03:01]} 9. d5 {[%clk 0:02:55]}  Ne7 {[%clk 0:03:01]} 10. b4 {[%clk 0:02:54]}  h6 {[%clk 0:03:02]} 11. Be3 {[%clk 0:02:53]}  f5 {[%clk 0:03:02]} 12. Qd2 {[%clk 0:02:48]}  g5 {[%clk 0:03:01]} 13. exf5 {[%clk 0:02:47]}  Nxf5 {[%clk 0:03:02]} 14. c5 {[%clk 0:02:39]}  a6 {[%clk 0:02:51]} 15. c6 {[%clk 0:02:25]}  bxc6 {[%clk 0:02:43]} 16. dxc6 {[%clk 0:02:26]}  Nf6 {[%clk 0:02:34]} 17. Nd5 {[%clk 0:01:57]}  Be6 {[%clk 0:02:29]} 18. Nxf6+ {[%clk 0:01:54]}  Qxf6 {[%clk 0:02:30]} 19. a4 {[%clk 0:01:42]}  Qg6 {[%clk 0:02:25]} 20. b5 {[%clk 0:01:34]}  Qh5 {[%clk 0:02:14]} 21. b6 {[%clk 0:01:19]}  cxb6 {[%clk 0:01:58]} 22. Bxb6 {[%clk 0:01:18]}  Rac8 {[%clk 0:01:57]} 23. c7 {[%clk 0:01:17]}  d5 {[%clk 0:01:52]} 24. Rfe1 {[%clk 0:01:05]}  e4 {[%clk 0:01:36]} 25. Nd4 {[%clk 0:01:00]}  Nxd4 {[%clk 0:01:24]} 26. Bxd4 {[%clk 0:00:58]}  Bxd4 {[%clk 0:01:24]} 27. Qxd4 {[%clk 0:00:59]}  Rxc7 {[%clk 0:01:24]} 28. Qb6 {[%clk 0:00:36]}  Qf7 {[%clk 0:01:21]} 29. Rac1 {[%clk 0:00:22]}  Rb7 {[%clk 0:01:16]} 30. Qd4 {[%clk 0:00:17]}  a5 {[%clk 0:01:09]} 31. Rc5 {[%clk 0:00:16]}  Rb4 {[%clk 0:01:08]} 32. Qe3 {[%clk 0:00:16]}  Rxa4 {[%clk 0:01:07]} 33. Rf1 {[%clk 0:00:14]}  Ra2 {[%clk 0:00:58]} 34. h4 {[%clk 0:00:13]}  Qf6 {[%clk 0:00:49]} 35. hxg5 {[%clk 0:00:12]}  Qxg5 {[%clk 0:00:48]} 36. Qd4 {[%clk 0:00:06]}  Qf6 {[%clk 0:00:47]} 37. Qe3 {[%clk 0:00:06]}  a4 {[%clk 0:00:45]} 38. Rc7 {[%clk 0:00:06]}  Ra1 {[%clk 0:00:40]} 39. Rxa1 {[%clk 0:00:02]}  Qxa1+ {[%clk 0:00:41]} 40. Kh2 {[%clk 0:00:02]}  Qf6 {[%clk 0:00:42]} 41. Ra7 {[%clk 0:00:02]}  Qg5 {[%clk 0:00:30]} 42. Qd4 {[%clk 0:00:01]}  Rc8 {[%clk 0:00:16]} 43. Kg1 {[%clk 0:00:01]}  a3 {[%clk 0:00:10]} 44. Bf1 {[%clk 0:00:01]}  Rc1 {[%clk 0:00:06]} 45. Qd2 {[%clk 0:00:01]}  Qxd2 {[%clk 0:00:06]} 46. Ra8+ {[%clk 0:00:02]}  Kf7 {[%clk 0:00:06]} 47. Ra7+ {[%clk 0:00:03]}  Kf6 {[%clk 0:00:06]} 48. Rf7+ {[%clk 0:00:03]}  Kxf7 {[%clk 0:00:06]} 49. g4 {[%clk 0:00:04]}  Rxf1+ {[%clk 0:00:06]} 50. Kxf1 {[%clk 0:00:04]}  e3 {[%clk 0:00:06]} 51. Kg2 {[%clk 0:00:05]}  Qxf2+ {[%clk 0:00:06]} 52. Kh3 {[%clk 0:00:06]}  Qf3+ {[%clk 0:00:07]} 53. Kh4 {[%clk 0:00:06]}  Qxg4# {[%clk 0:00:07]} 0-1

[Event "December 12 Early 2023"]
[Site "https://www.chess.com"]
[Date "2023.12.12"]
[Round "9"]
[White "Luukkonen, Tommi"]
[Black "Filipovic, Slobodan J"]
[Result "0-1"]
[Board "130"]
[TimeControl "180+1"]
[WhiteFideId "501808"]
[BlackFideId "939633"]
[WhiteElo "2323"]
[BlackElo "2412"]
[WhiteTeam "FIN"]
[BlackTeam "SRB"]
[WhiteClock "0:00:09"]
[BlackClock "0:00:28"]

1. e4 {[%clk 0:03:00]}  c5 {[%clk 0:02:42]} 2. Nf3 {[%clk 0:02:59]}  Nc6 {[%clk 0:02:42]} 3. d4 {[%clk 0:02:57]}  cxd4 {[%clk 0:02:42]} 4. Nxd4 {[%clk 0:02:58]}  e5 {[%clk 0:02:42]} 5. Nb5 {[%clk 0:02:56]}  d6 {[%clk 0:02:42]} 6. c4 {[%clk 0:02:54]}  a6 {[%clk 0:02:43]} 7. N5c3 {[%clk 0:02:53]}  Be6 {[%clk 0:02:44]} 8. Be2 {[%clk 0:02:47]}  Rc8 {[%clk 0:02:45]} 9. Be3 {[%clk 0:02:36]}  g6 {[%clk 0:02:46]} 10. Nd5 {[%clk 0:02:34]}  Bg7 {[%clk 0:02:47]} 11. Nbc3 {[%clk 0:02:24]}  Bxd5 {[%clk 0:02:47]} 12. Nxd5 {[%clk 0:02:23]}  Nd4 {[%clk 0:02:36]} 13. O-O {[%clk 0:02:16]}  Nf6 {[%clk 0:02:34]} 14. Bxd4 {[%clk 0:02:13]}  exd4 {[%clk 0:02:34]} 15. Qxd4 {[%clk 0:02:12]}  O-O {[%clk 0:02:34]} 16. Qd3 {[%clk 0:02:07]}  Nxd5 {[%clk 0:02:28]} 17. cxd5 {[%clk 0:02:07]}  Bxb2 {[%clk 0:02:25]} 18. Rab1 {[%clk 0:02:06]}  Qf6 {[%clk 0:02:16]} 19. Qb3 {[%clk 0:02:01]}  Bd4 {[%clk 0:02:07]} 20. Qxb7 {[%clk 0:01:58]}  a5 {[%clk 0:01:44]} 21. a4 {[%clk 0:01:51]}  Rc2 {[%clk 0:01:43]} 22. Qb5 {[%clk 0:01:46]}  Rfc8 {[%clk 0:01:39]} 23. Bf3 {[%clk 0:01:42]}  R8c5 {[%clk 0:01:31]} 24. Qe8+ {[%clk 0:01:39]}  Kg7 {[%clk 0:01:29]} 25. Rb8 {[%clk 0:01:39]}  Kh6 {[%clk 0:01:27]} 26. Qf8+ {[%clk 0:01:37]}  Qg7 {[%clk 0:01:21]} 27. Qxd6 {[%clk 0:01:37]}  Rxf2 {[%clk 0:01:19]} 28. Qf4+ {[%clk 0:01:28]}  g5 {[%clk 0:01:17]} 29. Rb6+ {[%clk 0:01:26]}  f6 {[%clk 0:01:17]} 30. Rxf6+ {[%clk 0:01:12]}  Bxf6 {[%clk 0:00:45]} 31. Qg4 {[%clk 0:00:54]}  Rxf1+ {[%clk 0:00:40]} 32. Kxf1 {[%clk 0:00:55]}  Rc1+ {[%clk 0:00:37]} 33. Ke2 {[%clk 0:00:53]}  Qg6 {[%clk 0:00:32]} 34. Qh3+ {[%clk 0:00:42]}  Kg7 {[%clk 0:00:31]} 35. Qd7+ {[%clk 0:00:43]}  Qf7 {[%clk 0:00:31]} 36. Qd6 {[%clk 0:00:09]}  Qc7 {[%clk 0:00:28]} 0-1

[Event "December 12 Early 2023"]
[Site "https://www.chess.com"]
[Date "2023.12.12"]
[Round "9"]
[White "Begunov, Konstantin"]
[Black "Adelman, Charles"]
[Result "1-0"]
[Board "131"]
[TimeControl "180+1"]
[WhiteFideId "4118510"]
[BlackFideId "2003597"]
[WhiteElo "2409"]
[BlackElo "2270"]
[WhiteTeam "RUS"]
[BlackTeam "USA"]
[WhiteClock "0:00:59"]
[BlackClock "0:01:54"]

1. d4 {[%clk 0:03:00]}  Nf6 {[%clk 0:02:59]} 2. c4 {[%clk 0:03:01]}  e6 {[%clk 0:02:59]} 3. Nf3 {[%clk 0:03:01]}  c5 {[%clk 0:02:59]} 4. Nc3 {[%clk 0:03:00]}  b6 {[%clk 0:02:58]} 5. g3 {[%clk 0:02:59]}  Bb7 {[%clk 0:02:58]} 6. dxc5 {[%clk 0:02:59]}  bxc5 {[%clk 0:02:54]} 7. Bg2 {[%clk 0:02:59]}  Be7 {[%clk 0:02:55]} 8. O-O {[%clk 0:02:59]}  O-O {[%clk 0:02:55]} 9. Qc2 {[%clk 0:02:59]}  d6 {[%clk 0:02:55]} 10. Rd1 {[%clk 0:02:59]}  Nbd7 {[%clk 0:02:53]} 11. Bf4 {[%clk 0:02:58]}  e5 {[%clk 0:02:51]} 12. Bg5 {[%clk 0:02:58]}  a6 {[%clk 0:02:48]} 13. Nh4 {[%clk 0:02:23]}  h6 {[%clk 0:02:40]} 14. Bxf6 {[%clk 0:02:14]}  Bxf6 {[%clk 0:02:32]} 15. Bxb7 {[%clk 0:02:13]}  Rb8 {[%clk 0:02:32]} 16. Bg2 {[%clk 0:02:07]}  Bxh4 {[%clk 0:02:32]} 17. gxh4 {[%clk 0:02:08]}  Qxh4 {[%clk 0:02:31]} 18. Rxd6 {[%clk 0:01:50]}  Nf6 {[%clk 0:02:31]} 19. h3 {[%clk 0:01:40]}  Qxc4 {[%clk 0:02:29]} 20. b3 {[%clk 0:01:21]}  Qf4 {[%clk 0:02:25]} 21. Nd5 {[%clk 0:01:11]}  Nxd5 {[%clk 0:02:23]} 22. Rxd5 {[%clk 0:01:12]}  Rfe8 {[%clk 0:02:11]} 23. Rxc5 {[%clk 0:01:09]}  Qd4 {[%clk 0:02:11]} 24. Rc1 {[%clk 0:01:04]}  g6 {[%clk 0:02:03]} 25. Qc4 {[%clk 0:01:00]}  Qd2 {[%clk 0:01:54]} 26. Rc7 {[%clk 0:00:59]} 1-0

[Event "December 12 Early 2023"]
[Site "https://www.chess.com"]
[Date "2023.12.12"]
[Round "9"]
[White "Sarkar, Justin"]
[Black "Omariev, Maksim"]
[Result "0-1"]
[Board "135"]
[TimeControl "180+1"]
[WhiteFideId "2010011"]
[BlackFideId "4193423"]
[WhiteElo "2301"]
[BlackElo "2485"]
[WhiteTeam "USA"]
[BlackTeam "RUS"]
[WhiteClock "0:00:00"]
[BlackClock "0:00:04"]

1. d4 {[%clk 0:02:32]}  h5 {[%clk 0:02:23]} 2. Nf3 {[%clk 0:02:23]}  h4 {[%clk 0:02:24]} 3. Bg5 {[%clk 0:02:18]}  h3 {[%clk 0:02:24]} 4. gxh3 {[%clk 0:02:13]}  d5 {[%clk 0:02:24]} 5. h4 {[%clk 0:02:09]}  Bg4 {[%clk 0:02:24]} 6. Bg2 {[%clk 0:02:05]}  Nf6 {[%clk 0:02:20]} 7. Nbd2 {[%clk 0:01:58]}  e6 {[%clk 0:02:18]} 8. c4 {[%clk 0:01:49]}  c6 {[%clk 0:02:14]} 9. Qb3 {[%clk 0:01:40]}  Qb6 {[%clk 0:02:11]} 10. c5 {[%clk 0:01:33]}  Qc7 {[%clk 0:01:46]} 11. Ne5 {[%clk 0:01:25]}  Bf5 {[%clk 0:01:25]} 12. Bf4 {[%clk 0:01:06]}  Nbd7 {[%clk 0:00:23]} 13. Ng6 {[%clk 0:00:55]}  e5 {[%clk 0:00:15]} 14. Nxe5 {[%clk 0:00:53]}  Nh5 {[%clk 0:00:03]} 15. Bg3 {[%clk 0:00:33]}  Nxg3 {[%clk 0:00:02]} 16. hxg3 {[%clk 0:00:32]}  Nxe5 {[%clk 0:00:02]} 17. dxe5 {[%clk 0:00:32]}  Bxc5 {[%clk 0:00:03]} 18. Rc1 {[%clk 0:00:20]}  Bb6 {[%clk 0:00:03]} 19. Qc3 {[%clk 0:00:05]}  O-O-O {[%clk 0:00:03]} 20. O-O {[%clk 0:00:03]}  d4 {[%clk 0:00:03]} 21. Qc4 {[%clk 0:00:02]}  Qxe5 {[%clk 0:00:04]} 22. Qxf7 {[%clk 0:00:00]}  Be6 {[%clk 0:00:04]} 0-1

[Event "December 12 Early 2023"]
[Site "https://www.chess.com"]
[Date "2023.12.12"]
[Round "9"]
[White "Latorre, Vincent"]
[Black "Golubenko, Valentina"]
[Result "0-1"]
[Board "137"]
[TimeControl "180+1"]
[WhiteFideId "2636891"]
[BlackFideId "4501993"]
[WhiteElo "2400"]
[BlackElo "2249"]
[WhiteTeam "CAN"]
[BlackTeam "CRO"]
[WhiteClock "0:01:37"]
[BlackClock "0:01:56"]

1. e4 {[%clk 0:03:00]}  e6 {[%clk 0:02:59]} 2. d4 {[%clk 0:03:00]}  d5 {[%clk 0:02:59]} 3. e5 {[%clk 0:03:00]}  c5 {[%clk 0:02:59]} 4. c3 {[%clk 0:03:01]}  Nc6 {[%clk 0:02:59]} 5. Nf3 {[%clk 0:03:00]}  Nge7 {[%clk 0:02:59]} 6. Be2 {[%clk 0:02:47]}  cxd4 {[%clk 0:02:56]} 7. cxd4 {[%clk 0:02:46]}  Nf5 {[%clk 0:02:56]} 8. Nc3 {[%clk 0:02:41]}  Be7 {[%clk 0:02:55]} 9. O-O {[%clk 0:02:41]}  a6 {[%clk 0:02:54]} 10. a3 {[%clk 0:02:39]}  O-O {[%clk 0:02:54]} 11. b4 {[%clk 0:02:37]}  f6 {[%clk 0:02:53]} 12. Bd3 {[%clk 0:02:32]}  fxe5 {[%clk 0:02:53]} 13. dxe5 {[%clk 0:02:28]}  Qc7 {[%clk 0:02:28]} 14. Qe1 {[%clk 0:01:56]}  Nh4 {[%clk 0:01:57]} 15. Nxh4 {[%clk 0:01:44]}  Bxh4 {[%clk 0:01:57]} 16. f4 {[%clk 0:01:37]}  Bxe1 {[%clk 0:01:56]} 0-1

[Event "December 12 Early 2023"]
[Site "https://www.chess.com"]
[Date "2023.12.12"]
[Round "9"]
[White "Petrukhina, Olga"]
[Black "NovakRatko"]
[Result "0-1"]
[Board "138"]
[TimeControl "180+1"]
[WhiteFideId "13703935"]
[WhiteElo "2221"]
[BlackElo "2355"]
[WhiteTeam "KAZ"]
[WhiteClock "0:00:31"]
[BlackClock "0:01:53"]

1. d4 {[%clk 0:03:00]}  d5 {[%clk 0:03:00]} 2. c4 {[%clk 0:03:00]}  c5 {[%clk 0:03:01]} 3. dxc5 {[%clk 0:02:54]}  d4 {[%clk 0:03:01]} 4. Nf3 {[%clk 0:02:52]}  Nc6 {[%clk 0:03:01]} 5. e3 {[%clk 0:02:52]}  e5 {[%clk 0:03:01]} 6. exd4 {[%clk 0:02:51]}  exd4 {[%clk 0:03:02]} 7. Bd3 {[%clk 0:02:51]}  Bxc5 {[%clk 0:03:02]} 8. O-O {[%clk 0:02:48]}  Nge7 {[%clk 0:03:03]} 9. a3 {[%clk 0:02:48]}  a5 {[%clk 0:03:03]} 10. Nbd2 {[%clk 0:02:48]}  O-O {[%clk 0:03:03]} 11. Re1 {[%clk 0:02:48]}  f6 {[%clk 0:03:03]} 12. Ne4 {[%clk 0:02:45]}  b6 {[%clk 0:03:03]} 13. Ng3 {[%clk 0:02:40]}  Qd6 {[%clk 0:02:58]} 14. Nh4 {[%clk 0:02:39]}  Ne5 {[%clk 0:02:54]} 15. Be4 {[%clk 0:02:35]}  Rb8 {[%clk 0:02:46]} 16. Bf4 {[%clk 0:02:08]}  Rd8 {[%clk 0:02:45]} 17. Qh5 {[%clk 0:01:46]}  g6 {[%clk 0:02:22]} 18. Nxg6 {[%clk 0:01:36]}  hxg6 {[%clk 0:02:18]} 19. Bxg6 {[%clk 0:01:36]}  N7xg6 {[%clk 0:02:14]} 20. Bxe5 {[%clk 0:01:01]}  Nxe5 {[%clk 0:02:12]} 21. Re4 {[%clk 0:00:56]}  Qe7 {[%clk 0:01:56]} 22. Rh4 {[%clk 0:00:54]}  Qg7 {[%clk 0:01:56]} 23. Re1 {[%clk 0:00:49]}  Bg4 {[%clk 0:01:55]} 24. Rxg4 {[%clk 0:00:39]}  Qxg4 {[%clk 0:01:54]} 25. Qh6 {[%clk 0:00:31]}  Qg6 {[%clk 0:01:53]} 0-1

[Event "December 12 Early 2023"]
[Site "https://www.chess.com"]
[Date "2023.12.12"]
[Round "9"]
[White "Donatti, Alvaro"]
[Black "Georg, Heinz"]
[Result "0-1"]
[Board "139"]
[TimeControl "180+1"]
[WhiteFideId "3000303"]
[BlackFideId "4607295"]
[WhiteElo "2046"]
[BlackElo "2337"]
[WhiteTeam "URU"]
[BlackTeam "GER"]
[WhiteClock "0:01:50"]
[BlackClock "0:02:19"]

1. e4 {[%clk 0:03:00]}  e5 {[%clk 0:02:59]} 2. Nf3 {[%clk 0:03:00]}  Nc6 {[%clk 0:02:59]} 3. Bb5 {[%clk 0:03:00]}  f5 {[%clk 0:02:58]} 4. Nc3 {[%clk 0:02:57]}  Nf6 {[%clk 0:02:58]} 5. d3 {[%clk 0:02:55]}  d6 {[%clk 0:02:58]} 6. O-O {[%clk 0:02:54]}  Be7 {[%clk 0:02:58]} 7. Bg5 {[%clk 0:02:53]}  O-O {[%clk 0:02:58]} 8. Bxf6 {[%clk 0:02:52]}  Bxf6 {[%clk 0:02:58]} 9. Nd5 {[%clk 0:02:52]}  f4 {[%clk 0:02:58]} 10. c3 {[%clk 0:02:46]}  Kh8 {[%clk 0:02:56]} 11. d4 {[%clk 0:02:45]}  Bg4 {[%clk 0:02:53]} 12. h3 {[%clk 0:02:42]}  Bh5 {[%clk 0:02:52]} 13. Be2 {[%clk 0:02:32]}  Bxf3 {[%clk 0:02:48]} 14. Bxf3 {[%clk 0:02:25]}  exd4 {[%clk 0:02:49]} 15. Nxf4 {[%clk 0:02:23]}  Qe8 {[%clk 0:02:30]} 16. cxd4 {[%clk 0:02:17]}  Nxd4 {[%clk 0:02:27]} 17. Nh5 {[%clk 0:02:00]}  Be5 {[%clk 0:02:21]} 18. Rb1 {[%clk 0:01:50]}  Nxf3+ {[%clk 0:02:19]} 0-1

[Event "December 12 Early 2023"]
[Site "https://www.chess.com"]
[Date "2023.12.12"]
[Round "9"]
[White "Shapiro, Daniel"]
[Black "Skiadopoulos, Nikolaos"]
[Result "1-0"]
[Board "142"]
[TimeControl "180+1"]
[WhiteFideId "2001780"]
[BlackFideId "4200772"]
[WhiteElo "2302"]
[BlackElo "1746"]
[WhiteTeam "USA"]
[BlackTeam "GRE"]
[WhiteClock "0:00:23"]
[BlackClock "0:00:01"]

1. d4 {[%clk 0:03:00]}  Nf6 {[%clk 0:02:59]} 2. c4 {[%clk 0:03:00]}  c5 {[%clk 0:02:58]} 3. d5 {[%clk 0:03:00]}  b5 {[%clk 0:02:58]} 4. cxb5 {[%clk 0:03:00]}  a6 {[%clk 0:02:58]} 5. e3 {[%clk 0:03:01]}  e6 {[%clk 0:02:52]} 6. dxe6 {[%clk 0:02:55]}  fxe6 {[%clk 0:02:51]} 7. Nc3 {[%clk 0:02:45]}  Be7 {[%clk 0:02:51]} 8. Nf3 {[%clk 0:02:44]}  O-O {[%clk 0:02:50]} 9. Bd3 {[%clk 0:02:37]}  axb5 {[%clk 0:02:47]} 10. Bxb5 {[%clk 0:02:34]}  d5 {[%clk 0:02:22]} 11. O-O {[%clk 0:02:33]}  Ba6 {[%clk 0:02:16]} 12. a4 {[%clk 0:02:30]}  Bxb5 {[%clk 0:01:43]} 13. Nxb5 {[%clk 0:02:31]}  Nc6 {[%clk 0:01:42]} 14. b3 {[%clk 0:02:14]}  e5 {[%clk 0:01:39]} 15. Bb2 {[%clk 0:02:11]}  d4 {[%clk 0:01:39]} 16. exd4 {[%clk 0:02:04]}  exd4 {[%clk 0:01:38]} 17. Ng5 {[%clk 0:01:57]}  Qd5 {[%clk 0:01:29]} 18. Bc1 {[%clk 0:01:24]}  Ne8 {[%clk 0:01:21]} 19. Nh3 {[%clk 0:01:07]}  Bf6 {[%clk 0:00:58]} 20. Re1 {[%clk 0:00:58]}  d3 {[%clk 0:00:52]} 21. Rb1 {[%clk 0:00:57]}  Nd4 {[%clk 0:00:51]} 22. Qxd3 {[%clk 0:00:52]}  Be5 {[%clk 0:00:36]} 23. Qc4 {[%clk 0:00:35]}  Rd8 {[%clk 0:00:31]} 24. Rxe5 {[%clk 0:00:24]}  Qxc4 {[%clk 0:00:23]} 25. bxc4 {[%clk 0:00:24]}  Ne2+ {[%clk 0:00:13]} 26. Kf1 {[%clk 0:00:24]}  Nf4 {[%clk 0:00:01]} 27. Bxf4 {[%clk 0:00:23]} 1-0

[Event "December 12 Early 2023"]
[Site "https://www.chess.com"]
[Date "2023.12.12"]
[Round "9"]
[White "Lohani, Sujana"]
[Black "Petrova, Irina"]
[Result "0-1"]
[Board "143"]
[TimeControl "180+1"]
[WhiteFideId "12311987"]
[BlackFideId "14124122"]
[WhiteElo "2016"]
[BlackElo "2298"]
[WhiteTeam "NEP"]
[BlackTeam "UKR"]
[WhiteClock "0:00:03"]
[BlackClock "0:01:42"]

1. d4 {[%clk 0:03:00]}  d6 {[%clk 0:02:59]} 2. e4 {[%clk 0:02:53]}  Nf6 {[%clk 0:02:55]} 3. Nc3 {[%clk 0:02:53]}  e6 {[%clk 0:02:53]} 4. Nf3 {[%clk 0:02:52]}  e5 {[%clk 0:02:54]} 5. Bg5 {[%clk 0:02:49]}  Nbd7 {[%clk 0:02:55]} 6. Bc4 {[%clk 0:02:48]}  Be7 {[%clk 0:02:55]} 7. O-O {[%clk 0:02:44]}  O-O {[%clk 0:02:54]} 8. h3 {[%clk 0:02:44]}  c6 {[%clk 0:02:53]} 9. a4 {[%clk 0:02:43]}  h6 {[%clk 0:02:53]} 10. Be3 {[%clk 0:02:39]}  Re8 {[%clk 0:02:52]} 11. Qd2 {[%clk 0:02:29]}  Qc7 {[%clk 0:02:46]} 12. Rfd1 {[%clk 0:02:10]}  Bf8 {[%clk 0:02:44]} 13. d5 {[%clk 0:02:03]}  Nc5 {[%clk 0:02:31]} 14. Bxc5 {[%clk 0:01:57]}  dxc5 {[%clk 0:02:31]} 15. d6 {[%clk 0:01:57]}  Qb6 {[%clk 0:02:26]} 16. a5 {[%clk 0:01:41]}  Qd8 {[%clk 0:02:24]} 17. a6 {[%clk 0:01:30]}  b5 {[%clk 0:02:21]} 18. Bf1 {[%clk 0:01:30]}  b4 {[%clk 0:02:19]} 19. Na4 {[%clk 0:01:19]}  Nxe4 {[%clk 0:02:18]} 20. Qe3 {[%clk 0:01:19]}  Nxd6 {[%clk 0:02:16]} 21. Nxc5 {[%clk 0:01:17]}  Qf6 {[%clk 0:02:13]} 22. Rd2 {[%clk 0:00:43]}  Nf5 {[%clk 0:01:55]} 23. Qe4 {[%clk 0:00:13]}  Bxc5 {[%clk 0:01:48]} 24. Re1 {[%clk 0:00:09]}  Ng3 {[%clk 0:01:43]} 25. Qxc6 {[%clk 0:00:03]}  Qxc6 {[%clk 0:01:42]} 0-1

[Event "December 12 Early 2023"]
[Site "https://www.chess.com"]
[Date "2023.12.12"]
[Round "9"]
[White "Tilahun , Abel Mathewos"]
[Black "Skurikhin, Dmitrij"]
[Result "1-0"]
[Board "147"]
[TimeControl "180+1"]
[WhiteFideId "15702391"]
[BlackFideId "4161297"]
[WhiteElo "2074"]
[BlackElo "2290"]
[WhiteTeam "ETH"]
[BlackTeam "RUS"]
[WhiteClock "0:01:10"]
[BlackClock "0:02:00"]

1. d4 {[%clk 0:02:56]}  b6 {[%clk 0:02:57]} 2. c4 {[%clk 0:02:56]}  Bb7 {[%clk 0:02:56]} 3. Nc3 {[%clk 0:02:55]}  g6 {[%clk 0:02:55]} 4. Nf3 {[%clk 0:02:55]}  Bg7 {[%clk 0:02:55]} 5. g3 {[%clk 0:02:55]}  e6 {[%clk 0:02:51]} 6. Bg2 {[%clk 0:02:55]}  Ne7 {[%clk 0:02:44]} 7. O-O {[%clk 0:02:50]}  d6 {[%clk 0:02:44]} 8. d5 {[%clk 0:02:49]}  e5 {[%clk 0:02:43]} 9. Be3 {[%clk 0:02:41]}  Nd7 {[%clk 0:02:40]} 10. Qd2 {[%clk 0:02:39]}  Bh6 {[%clk 0:02:39]} 11. Bxh6 {[%clk 0:02:36]}  Nf5 {[%clk 0:02:38]} 12. e4 {[%clk 0:02:16]}  Nxh6 {[%clk 0:02:37]} 13. Qxh6 {[%clk 0:02:15]}  Qe7 {[%clk 0:02:38]} 14. Nb5 {[%clk 0:02:11]}  O-O-O {[%clk 0:02:34]} 15. Nxa7+ {[%clk 0:02:09]}  Kb8 {[%clk 0:02:29]} 16. Nc6+ {[%clk 0:02:02]}  Bxc6 {[%clk 0:02:28]} 17. dxc6 {[%clk 0:02:02]}  Nc5 {[%clk 0:02:28]} 18. Qe3 {[%clk 0:01:54]}  f5 {[%clk 0:02:26]} 19. Nd2 {[%clk 0:01:33]}  Rdf8 {[%clk 0:02:23]} 20. b4 {[%clk 0:01:28]}  Na6 {[%clk 0:02:14]} 21. Qa3 {[%clk 0:01:25]}  Nxb4 {[%clk 0:02:09]} 22. Qxb4 {[%clk 0:01:24]}  f4 {[%clk 0:02:10]} 23. a4 {[%clk 0:01:20]}  d5 {[%clk 0:02:06]} 24. Qxe7 {[%clk 0:01:18]}  Rf7 {[%clk 0:02:05]} 25. Qxf7 {[%clk 0:01:16]}  f3 {[%clk 0:02:04]} 26. Bxf3 {[%clk 0:01:14]}  h5 {[%clk 0:02:03]} 27. a5 {[%clk 0:01:12]}  b5 {[%clk 0:02:02]} 28. Rab1 {[%clk 0:01:11]}  Ka7 {[%clk 0:02:01]} 29. Qxc7+ {[%clk 0:01:10]}  Ka6 {[%clk 0:02:00]} 30. Qb6# {[%clk 0:01:10]} 1-0